[Event "Titled Tuesday Blitz June 21 Early 2022"]
[White "Hosseinzadeh, Nima"]
[Black "Oparin, Grigoriy"]
[WhiteFideId "12505323"]
[BlackFideId "24125890"]
[WhiteElo "2066"]
[BlackElo "2639"]
[Result "0-1"]
[Round "01"]
[TimeControl "180+1"]
[Date "2022.06.21"]
[WhiteClock "0:00:06"]
[BlackClock "0:01:16"]

1. e4 {[%clk 0:03:00]}  c5 {[%clk 0:02:59]} 2. Nf3 {[%clk 0:02:59]}  d6 {[%clk 0:03:00]} 3. d4 {[%clk 0:03:00]}  cxd4 {[%clk 0:03:01]} 4. Nxd4 {[%clk 0:03:01]}  Nf6 {[%clk 0:03:01]} 5. Nc3 {[%clk 0:03:02]}  Nc6 {[%clk 0:03:02]} 6. Bg5 {[%clk 0:03:01]}  e6 {[%clk 0:03:02]} 7. Qd2 {[%clk 0:03:01]}  a6 {[%clk 0:03:03]} 8. O-O-O {[%clk 0:03:01]}  Bd7 {[%clk 0:03:03]} 9. f4 {[%clk 0:03:00]}  Be7 {[%clk 0:03:03]} 10. Nf3 {[%clk 0:02:58]}  b5 {[%clk 0:03:01]} 11. Bxf6 {[%clk 0:02:58]}  gxf6 {[%clk 0:03:02]} 12. f5 {[%clk 0:02:59]}  b4 {[%clk 0:02:58]} 13. Ne2 {[%clk 0:02:57]}  Qb6 {[%clk 0:02:58]} 14. Nf4 {[%clk 0:02:45]}  O-O-O {[%clk 0:02:21]} 15. g3 {[%clk 0:02:43]}  Rhe8 {[%clk 0:02:17]} 16. Bh3 {[%clk 0:02:41]}  Bf8 {[%clk 0:02:17]} 17. Kb1 {[%clk 0:02:35]}  Kb8 {[%clk 0:02:11]} 18. Nh5 {[%clk 0:02:16]}  Be7 {[%clk 0:02:11]} 19. Qh6 {[%clk 0:02:11]}  Ne5 {[%clk 0:02:02]} 20. Nxe5 {[%clk 0:01:58]}  fxe5 {[%clk 0:02:03]} 21. fxe6 {[%clk 0:01:54]}  fxe6 {[%clk 0:02:04]} 22. Nf6 {[%clk 0:01:44]}  Bxf6 {[%clk 0:01:59]} 23. Qxf6 {[%clk 0:01:45]}  a5 {[%clk 0:01:59]} 24. Rd2 {[%clk 0:01:31]}  a4 {[%clk 0:01:59]} 25. Rhd1 {[%clk 0:01:30]}  Bc8 {[%clk 0:02:00]} 26. Bf1 {[%clk 0:01:07]}  Qc5 {[%clk 0:01:55]} 27. Qf3 {[%clk 0:00:46]}  Bb7 {[%clk 0:01:53]} 28. Qd3 {[%clk 0:00:44]}  Rf8 {[%clk 0:01:46]} 29. Bh3 {[%clk 0:00:13]}  Rf6 {[%clk 0:01:41]} 30. Rc1 {[%clk 0:00:09]}  Bc6 {[%clk 0:01:30]} 31. c3 {[%clk 0:00:09]}  b3 {[%clk 0:01:30]} 32. a3 {[%clk 0:00:08]}  Kc7 {[%clk 0:01:29]} 33. c4 {[%clk 0:00:08]}  Rdf8 {[%clk 0:01:23]} 34. Rcd1 {[%clk 0:00:07]}  Rf2 {[%clk 0:01:17]} 35. Qxd6+ {[%clk 0:00:06]}  Qxd6 {[%clk 0:01:18]} 36. Rxd6 {[%clk 0:00:07]}  Rxh2 {[%clk 0:01:16]} 37. Bxe6 {[%clk 0:00:06]}  Rff2 {[%clk 0:01:16]} 0-1


[Site "https://www.chess.com"]

[Event "Titled Tuesday Blitz June 21 Early 2022"]
[White "Huber, Benedikt"]
[Black "Papasimakopoulos, Alexandros"]
[WhiteFideId "12923583"]
[BlackFideId "4244125"]
[WhiteElo "1979"]
[BlackElo "2340"]
[Result "0-1"]
[Round "01"]
[TimeControl "180+1"]
[Date "2022.06.22"]
[WhiteClock "0:00:10"]
[BlackClock "0:00:13"]

1. d4 {[%clk 0:02:58]}  d5 {[%clk 0:02:55]} 2. Bf4 {[%clk 0:02:55]}  e6 {[%clk 0:02:45]} 3. e3 {[%clk 0:02:55]}  Bd6 {[%clk 0:02:45]} 4. Bg3 {[%clk 0:02:49]}  Ne7 {[%clk 0:02:45]} 5. Nf3 {[%clk 0:02:48]}  Nf5 {[%clk 0:02:45]} 6. Bd3 {[%clk 0:02:48]}  Nxg3 {[%clk 0:02:44]} 7. hxg3 {[%clk 0:02:49]}  h6 {[%clk 0:02:43]} 8. Nbd2 {[%clk 0:02:46]}  c5 {[%clk 0:02:42]} 9. c3 {[%clk 0:02:46]}  Nc6 {[%clk 0:02:41]} 10. g4 {[%clk 0:02:44]}  e5 {[%clk 0:02:25]} 11. dxe5 {[%clk 0:02:40]}  Nxe5 {[%clk 0:02:26]} 12. Nxe5 {[%clk 0:02:40]}  Bxe5 {[%clk 0:02:26]} 13. Nf3 {[%clk 0:02:28]}  Bxg4 {[%clk 0:01:58]} 14. Qa4+ {[%clk 0:02:25]}  Bd7 {[%clk 0:01:58]} 15. Bb5 {[%clk 0:02:26]}  Bf6 {[%clk 0:01:49]} 16. O-O-O {[%clk 0:02:23]}  a6 {[%clk 0:01:48]} 17. Bxd7+ {[%clk 0:02:22]}  Qxd7 {[%clk 0:01:49]} 18. Qxd7+ {[%clk 0:02:22]}  Kxd7 {[%clk 0:01:49]} 19. Rxd5+ {[%clk 0:02:23]}  Kc6 {[%clk 0:01:49]} 20. Rhd1 {[%clk 0:02:22]}  Rad8 {[%clk 0:01:49]} 21. Ne5+ {[%clk 0:02:14]}  Kc7 {[%clk 0:01:49]} 22. Rxc5+ {[%clk 0:02:03]}  Kb6 {[%clk 0:01:45]} 23. Rcd5 {[%clk 0:01:53]}  Rxd5 {[%clk 0:01:41]} 24. Rxd5 {[%clk 0:01:54]}  Bxe5 {[%clk 0:01:35]} 25. Rxe5 {[%clk 0:01:55]}  g5 {[%clk 0:01:19]} 26. Re7 {[%clk 0:01:50]}  Rh7 {[%clk 0:01:19]} 27. e4 {[%clk 0:01:32]}  h5 {[%clk 0:01:05]} 28. e5 {[%clk 0:01:30]}  g4 {[%clk 0:00:56]} 29. e6 {[%clk 0:01:14]}  Rh8 {[%clk 0:00:37]} 30. exf7 {[%clk 0:01:11]}  Rf8 {[%clk 0:00:36]} 31. Kd2 {[%clk 0:01:06]}  h4 {[%clk 0:00:36]} 32. Ke3 {[%clk 0:01:05]}  h3 {[%clk 0:00:35]} 33. gxh3 {[%clk 0:01:02]}  gxh3 {[%clk 0:00:36]} 34. Kf3 {[%clk 0:00:48]}  Kc6 {[%clk 0:00:27]} 35. Kg3 {[%clk 0:00:48]}  b5 {[%clk 0:00:27]} 36. Kxh3 {[%clk 0:00:48]}  Kd6 {[%clk 0:00:28]} 37. Ra7 {[%clk 0:00:48]}  Ke6 {[%clk 0:00:29]} 38. Kg4 {[%clk 0:00:47]}  Kf6 {[%clk 0:00:29]} 39. Kf4 {[%clk 0:00:47]}  Rd8 {[%clk 0:00:26]} 40. Ke4 {[%clk 0:00:45]}  Kg7 {[%clk 0:00:26]} 41. Ke5 {[%clk 0:00:43]}  Rd2 {[%clk 0:00:26]} 42. f4 {[%clk 0:00:38]}  Rxb2 {[%clk 0:00:24]} 43. Rxa6 {[%clk 0:00:30]}  Rc2 {[%clk 0:00:18]} 44. Ke6 {[%clk 0:00:26]}  Rxc3 {[%clk 0:00:17]} 45. Rb6 {[%clk 0:00:26]}  Re3+ {[%clk 0:00:16]} 46. Kf5 {[%clk 0:00:25]}  Ra3 {[%clk 0:00:15]} 47. Rb7 {[%clk 0:00:13]}  Rxa2 {[%clk 0:00:15]} 48. Ke6 {[%clk 0:00:14]}  Re2+ {[%clk 0:00:14]} 49. Kd5 {[%clk 0:00:14]}  b4 {[%clk 0:00:13]} 50. Kc4 {[%clk 0:00:14]}  Re1 {[%clk 0:00:14]} 51. Rd7 {[%clk 0:00:12]}  Rb1 {[%clk 0:00:12]} 52. f5 {[%clk 0:00:12]}  b3 {[%clk 0:00:12]} 53. f6+ {[%clk 0:00:09]}  Kf8 {[%clk 0:00:13]} 54. Kd5 {[%clk 0:00:10]}  Rd1+ {[%clk 0:00:12]} 55. Ke6 {[%clk 0:00:10]}  Rxd7 {[%clk 0:00:13]} 0-1


[Site "https://www.chess.com"]

[Event "Titled Tuesday Blitz June 21 Early 2022"]
[White "Jakubowska, Anna"]
[Black "Samunenkov, Ihor"]
[WhiteFideId "1121952"]
[BlackFideId "14187086"]
[WhiteElo "1878"]
[BlackElo "2409"]
[Result "0-1"]
[Round "01"]
[TimeControl "180+1"]
[Date "2022.06.22"]
[WhiteClock "0:00:13"]
[BlackClock "0:00:02"]

1. e4 {[%clk 0:03:00]}  c6 {[%clk 0:02:58]} 2. d4 {[%clk 0:03:00]}  d5 {[%clk 0:02:59]} 3. e5 {[%clk 0:03:00]}  Bf5 {[%clk 0:02:55]} 4. Nf3 {[%clk 0:03:00]}  e6 {[%clk 0:02:55]} 5. Be2 {[%clk 0:03:00]}  c5 {[%clk 0:02:55]} 6. Be3 {[%clk 0:02:57]}  Qb6 {[%clk 0:02:55]} 7. Nc3 {[%clk 0:02:52]}  Nc6 {[%clk 0:02:54]} 8. dxc5 {[%clk 0:02:47]}  Bxc5 {[%clk 0:02:50]} 9. Bxc5 {[%clk 0:02:43]}  Qxc5 {[%clk 0:02:50]} 10. Nb5 {[%clk 0:02:42]}  Rd8 {[%clk 0:02:26]} 11. Nd6+ {[%clk 0:02:39]}  Kf8 {[%clk 0:02:26]} 12. Nxf5 {[%clk 0:02:37]}  exf5 {[%clk 0:02:26]} 13. O-O {[%clk 0:02:37]}  Nge7 {[%clk 0:02:23]} 14. Bd3 {[%clk 0:02:27]}  g6 {[%clk 0:02:03]} 15. e6 {[%clk 0:02:22]}  f6 {[%clk 0:02:00]} 16. Re1 {[%clk 0:02:15]}  Kg7 {[%clk 0:02:00]} 17. Qd2 {[%clk 0:02:05]}  Rhe8 {[%clk 0:01:58]} 18. Qf4 {[%clk 0:02:04]}  Nc8 {[%clk 0:01:48]} 19. Nh4 {[%clk 0:01:55]}  Nd6 {[%clk 0:01:46]} 20. Qg3 {[%clk 0:01:48]}  d4 {[%clk 0:01:18]} 21. h3 {[%clk 0:01:38]}  Nb4 {[%clk 0:01:02]} 22. e7 {[%clk 0:01:32]}  Rd7 {[%clk 0:00:58]} 23. Re6 {[%clk 0:01:31]}  Nxd3 {[%clk 0:00:49]} 24. cxd3 {[%clk 0:01:26]}  Rexe7 {[%clk 0:00:45]} 25. Rae1 {[%clk 0:01:21]}  Kf7 {[%clk 0:00:40]} 26. Rxe7+ {[%clk 0:01:14]}  Rxe7 {[%clk 0:00:40]} 27. Rxe7+ {[%clk 0:01:14]}  Kxe7 {[%clk 0:00:41]} 28. Nf3 {[%clk 0:01:14]}  g5 {[%clk 0:00:31]} 29. Kh2 {[%clk 0:00:55]}  h5 {[%clk 0:00:29]} 30. Nxg5 {[%clk 0:00:46]}  fxg5 {[%clk 0:00:26]} 31. Qxg5+ {[%clk 0:00:46]}  Ke6 {[%clk 0:00:24]} 32. Qxh5 {[%clk 0:00:43]}  Qe5+ {[%clk 0:00:19]} 33. g3 {[%clk 0:00:43]}  f4 {[%clk 0:00:18]} 34. Qg4+ {[%clk 0:00:38]}  Qf5 {[%clk 0:00:15]} 35. Qg8+ {[%clk 0:00:34]}  Kd7 {[%clk 0:00:16]} 36. Qg7+ {[%clk 0:00:26]}  Kc6 {[%clk 0:00:13]} 37. Qxd4 {[%clk 0:00:27]}  fxg3+ {[%clk 0:00:13]} 38. fxg3 {[%clk 0:00:26]}  Qf1 {[%clk 0:00:09]} 39. g4 {[%clk 0:00:17]}  b6 {[%clk 0:00:04]} 40. g5 {[%clk 0:00:13]}  Qe2+ {[%clk 0:00:02]} 41. Kg3 {[%clk 0:00:13]}  Nf5+ {[%clk 0:00:02]} 0-1


[Site "https://www.chess.com"]

[Event "Titled Tuesday Blitz June 21 Early 2022"]
[White "Jakubowski, Krzysztof"]
[Black "Delorme, Alban"]
[WhiteFideId "1112848"]
[BlackFideId "623636"]
[WhiteElo "2365"]
[BlackElo "2197"]
[Result "1-0"]
[Round "01"]
[TimeControl "180+1"]
[Date "2022.06.22"]
[WhiteClock "0:00:18"]
[BlackClock "0:01:24"]

1. d4 {[%clk 0:02:56]}  d6 {[%clk 0:02:58]} 2. e4 {[%clk 0:02:54]}  Nf6 {[%clk 0:02:55]} 3. Nc3 {[%clk 0:02:53]}  g6 {[%clk 0:02:55]} 4. f4 {[%clk 0:02:51]}  a6 {[%clk 0:02:54]} 5. Be3 {[%clk 0:02:45]}  b5 {[%clk 0:02:54]} 6. a3 {[%clk 0:02:25]}  Bb7 {[%clk 0:02:53]} 7. Bd3 {[%clk 0:02:25]}  Nbd7 {[%clk 0:02:51]} 8. Nf3 {[%clk 0:02:23]}  Bg7 {[%clk 0:02:51]} 9. O-O {[%clk 0:02:13]}  O-O {[%clk 0:02:49]} 10. Kh1 {[%clk 0:02:12]}  e5 {[%clk 0:02:47]} 11. fxe5 {[%clk 0:01:54]}  dxe5 {[%clk 0:02:48]} 12. d5 {[%clk 0:01:53]}  c6 {[%clk 0:02:40]} 13. dxc6 {[%clk 0:01:50]}  Bxc6 {[%clk 0:02:37]} 14. Qe1 {[%clk 0:01:49]}  Nh5 {[%clk 0:02:36]} 15. Rd1 {[%clk 0:01:47]}  Qe7 {[%clk 0:02:35]} 16. Bg5 {[%clk 0:01:43]}  f6 {[%clk 0:02:34]} 17. Bc1 {[%clk 0:01:42]}  Nc5 {[%clk 0:02:35]} 18. a4 {[%clk 0:01:08]}  b4 {[%clk 0:02:32]} 19. Bc4+ {[%clk 0:01:08]}  Kh8 {[%clk 0:02:32]} 20. Nd5 {[%clk 0:01:08]}  Bxd5 {[%clk 0:02:32]} 21. Bxd5 {[%clk 0:01:08]}  Rab8 {[%clk 0:02:29]} 22. b3 {[%clk 0:01:07]}  Nf4 {[%clk 0:02:25]} 23. Bxf4 {[%clk 0:01:06]}  exf4 {[%clk 0:02:26]} 24. Qe2 {[%clk 0:01:05]}  f5 {[%clk 0:02:23]} 25. e5 {[%clk 0:01:04]}  g5 {[%clk 0:02:23]} 26. Rfe1 {[%clk 0:01:00]}  Rbe8 {[%clk 0:02:19]} 27. Qc4 {[%clk 0:00:43]}  Rc8 {[%clk 0:01:57]} 28. Qxb4 {[%clk 0:00:39]}  g4 {[%clk 0:01:53]} 29. Nd4 {[%clk 0:00:39]}  g3 {[%clk 0:01:47]} 30. h3 {[%clk 0:00:38]}  Qc7 {[%clk 0:01:37]} 31. Nf3 {[%clk 0:00:37]}  Ne4 {[%clk 0:01:34]} 32. Bxe4 {[%clk 0:00:37]}  fxe4 {[%clk 0:01:34]} 33. Qxe4 {[%clk 0:00:37]}  Qxc2 {[%clk 0:01:35]} 34. e6 {[%clk 0:00:29]}  Rfe8 {[%clk 0:01:34]} 35. e7 {[%clk 0:00:26]}  Qxe4 {[%clk 0:01:30]} 36. Rxe4 {[%clk 0:00:26]}  Bf6 {[%clk 0:01:31]} 37. Rde1 {[%clk 0:00:25]}  Rc7 {[%clk 0:01:30]} 38. Kg1 {[%clk 0:00:25]}  Rexe7 {[%clk 0:01:28]} 39. Rxe7 {[%clk 0:00:24]}  Bxe7 {[%clk 0:01:28]} 40. Kf1 {[%clk 0:00:24]}  Kg7 {[%clk 0:01:27]} 41. Ke2 {[%clk 0:00:21]}  Rc2+ {[%clk 0:01:27]} 42. Kd3 {[%clk 0:00:21]}  Rxg2 {[%clk 0:01:27]} 43. Rxe7+ {[%clk 0:00:21]}  Kf6 {[%clk 0:01:27]} 44. Re4 {[%clk 0:00:21]}  Rb2 {[%clk 0:01:25]} 45. Rxf4+ {[%clk 0:00:20]}  Ke6 {[%clk 0:01:26]} 46. Nd4+ {[%clk 0:00:19]}  Ke5 {[%clk 0:01:24]} 47. Rg4 {[%clk 0:00:19]}  g2 {[%clk 0:01:24]} 48. Kc3 {[%clk 0:00:19]}  Rc2+ {[%clk 0:01:24]} 49. Kxc2 {[%clk 0:00:18]} 1-0


[Site "https://www.chess.com"]

[Event "Titled Tuesday Blitz June 21 Early 2022"]
[White "Jeet, Jain"]
[Black "Polster, Christian"]
[WhiteFideId "5073022"]
[BlackFideId "12965081"]
[WhiteElo "2055"]
[BlackElo "2260"]
[Result "0-1"]
[Round "01"]
[TimeControl "180+1"]
[Date "2022.06.22"]
[WhiteClock "0:01:17"]
[BlackClock "0:00:10"]

1. d4 {[%clk 0:02:52]}  d5 {[%clk 0:02:57]} 2. Nc3 {[%clk 0:02:49]}  Nf6 {[%clk 0:02:44]} 3. Bg5 {[%clk 0:02:48]}  Nbd7 {[%clk 0:02:42]} 4. f3 {[%clk 0:02:44]}  h6 {[%clk 0:01:31]} 5. Bxf6 {[%clk 0:02:41]}  Nxf6 {[%clk 0:01:31]} 6. e4 {[%clk 0:02:41]}  e6 {[%clk 0:01:11]} 7. e5 {[%clk 0:02:40]}  Nd7 {[%clk 0:01:11]} 8. f4 {[%clk 0:02:40]}  c5 {[%clk 0:01:08]} 9. Nf3 {[%clk 0:02:40]}  Qb6 {[%clk 0:01:00]} 10. Rb1 {[%clk 0:02:34]}  cxd4 {[%clk 0:00:33]} 11. Ne2 {[%clk 0:02:34]}  Bb4+ {[%clk 0:00:31]} 12. c3 {[%clk 0:02:34]}  Be7 {[%clk 0:00:20]} 13. Nexd4 {[%clk 0:02:34]}  Nc5 {[%clk 0:00:20]} 14. Be2 {[%clk 0:02:28]}  Bd7 {[%clk 0:00:20]} 15. O-O {[%clk 0:02:26]}  O-O {[%clk 0:00:20]} 16. Kh1 {[%clk 0:02:24]}  Ne4 {[%clk 0:00:20]} 17. Bd3 {[%clk 0:02:24]}  f5 {[%clk 0:00:20]} 18. exf6 {[%clk 0:02:24]}  Nxf6 {[%clk 0:00:20]} 19. Ne5 {[%clk 0:02:23]}  Rad8 {[%clk 0:00:19]} 20. Re1 {[%clk 0:02:22]}  Rfe8 {[%clk 0:00:18]} 21. Nxd7 {[%clk 0:02:22]}  Rxd7 {[%clk 0:00:17]} 22. Rxe6 {[%clk 0:02:22]}  Rd6 {[%clk 0:00:15]} 23. Rxd6 {[%clk 0:02:20]}  Bxd6 {[%clk 0:00:16]} 24. Qf3 {[%clk 0:02:21]}  Qc7 {[%clk 0:00:16]} 25. g3 {[%clk 0:02:17]}  Ne4 {[%clk 0:00:16]} 26. Re1 {[%clk 0:02:14]}  Bc5 {[%clk 0:00:16]} 27. Bxe4 {[%clk 0:02:13]}  dxe4 {[%clk 0:00:15]} 28. Rxe4 {[%clk 0:02:14]}  Rd8 {[%clk 0:00:12]} 29. Qe3 {[%clk 0:01:58]}  Qd7 {[%clk 0:00:09]} 30. Kg2 {[%clk 0:01:50]}  a6 {[%clk 0:00:06]} 31. h3 {[%clk 0:01:44]}  Qd5 {[%clk 0:00:07]} 32. Kh2 {[%clk 0:01:40]}  Qd7 {[%clk 0:00:06]} 33. Qd3 {[%clk 0:01:32]}  b5 {[%clk 0:00:03]} 34. a4 {[%clk 0:01:32]}  bxa4 {[%clk 0:00:02]} 35. Qc4+ {[%clk 0:01:32]}  Qd5 {[%clk 0:00:01]} 36. Re8+ {[%clk 0:01:30]}  Kf7 {[%clk 0:00:01]} 37. Qxd5+ {[%clk 0:01:26]}  Rxd5 {[%clk 0:00:02]} 38. Re5 {[%clk 0:01:25]}  Rxe5 {[%clk 0:00:02]} 39. fxe5 {[%clk 0:01:25]}  a3 {[%clk 0:00:01]} 40. bxa3 {[%clk 0:01:24]}  Bxa3 {[%clk 0:00:02]} 41. Kg2 {[%clk 0:01:23]}  Bb2 {[%clk 0:00:02]} 42. Ne2 {[%clk 0:01:22]}  a5 {[%clk 0:00:03]} 43. Nd4 {[%clk 0:01:11]}  a4 {[%clk 0:00:03]} 44. e6+ {[%clk 0:01:06]}  Ke7 {[%clk 0:00:02]} 45. Nc6+ {[%clk 0:01:04]}  Kxe6 {[%clk 0:00:02]} 46. Nb4 {[%clk 0:01:05]}  Bxc3 {[%clk 0:00:02]} 47. Na2 {[%clk 0:01:06]}  Bd2 {[%clk 0:00:02]} 48. Kf3 {[%clk 0:01:07]}  Ke5 {[%clk 0:00:02]} 49. g4 {[%clk 0:01:07]}  Kd4 {[%clk 0:00:02]} 50. h4 {[%clk 0:01:07]}  Kc4 {[%clk 0:00:02]} 51. Ke2 {[%clk 0:01:07]}  Kb3 {[%clk 0:00:02]} 52. Kxd2 {[%clk 0:01:07]}  Kxa2 {[%clk 0:00:02]} 53. Kc2 {[%clk 0:01:08]}  g6 {[%clk 0:00:02]} 54. g5 {[%clk 0:01:08]}  h5 {[%clk 0:00:02]} 55. Kc3 {[%clk 0:01:06]}  Kb1 {[%clk 0:00:01]} 56. Kb4 {[%clk 0:01:06]}  Kc2 {[%clk 0:00:02]} 57. Kxa4 {[%clk 0:01:07]}  Kd3 {[%clk 0:00:03]} 58. Kb4 {[%clk 0:01:08]}  Ke4 {[%clk 0:00:04]} 59. Kc4 {[%clk 0:01:09]}  Kf4 {[%clk 0:00:04]} 60. Kd3 {[%clk 0:01:10]}  Kg4 {[%clk 0:00:05]} 61. Ke3 {[%clk 0:01:11]}  Kxh4 {[%clk 0:00:06]} 62. Kf4 {[%clk 0:01:12]}  Kh3 {[%clk 0:00:07]} 63. Ke5 {[%clk 0:01:12]}  Kg4 {[%clk 0:00:07]} 64. Kf6 {[%clk 0:01:13]}  h4 {[%clk 0:00:07]} 65. Kxg6 {[%clk 0:01:14]}  h3 {[%clk 0:00:08]} 66. Kf7 {[%clk 0:01:15]}  Kxg5 {[%clk 0:00:08]} 67. Kg7 {[%clk 0:01:14]}  h2 {[%clk 0:00:09]} 68. Kf8 {[%clk 0:01:15]}  h1=Q {[%clk 0:00:09]} 69. Kg8 {[%clk 0:01:16]}  Qb7 {[%clk 0:00:09]} 70. Kf8 {[%clk 0:01:16]}  Kf6 {[%clk 0:00:10]} 71. Ke8 {[%clk 0:01:17]}  Qe7# {[%clk 0:00:10]} 0-1


[Site "https://www.chess.com"]

[Event "Titled Tuesday Blitz June 21 Early 2022"]
[White "Joie, Sebastien"]
[Black "Xu, Yi"]
[WhiteFideId "650420"]
[BlackFideId "8605564"]
[WhiteElo "2397"]
[BlackElo "2471"]
[Result "0-1"]
[Round "01"]
[TimeControl "180+1"]
[Date "2022.06.21"]
[WhiteClock "0:00:20"]
[BlackClock "0:01:05"]

1. Nf3 {[%clk 0:02:53]}  d5 {[%clk 0:02:59]} 2. g3 {[%clk 0:02:53]}  Nf6 {[%clk 0:02:59]} 3. Bg2 {[%clk 0:02:53]}  c5 {[%clk 0:03:00]} 4. O-O {[%clk 0:02:53]}  Nc6 {[%clk 0:03:00]} 5. d4 {[%clk 0:02:53]}  cxd4 {[%clk 0:03:00]} 6. Nxd4 {[%clk 0:02:54]}  e5 {[%clk 0:02:53]} 7. Nxc6 {[%clk 0:02:54]}  bxc6 {[%clk 0:02:53]} 8. c4 {[%clk 0:02:55]}  Be7 {[%clk 0:02:48]} 9. Nc3 {[%clk 0:02:52]}  Be6 {[%clk 0:02:47]} 10. cxd5 {[%clk 0:02:45]}  cxd5 {[%clk 0:02:47]} 11. Qa4+ {[%clk 0:02:42]}  Bd7 {[%clk 0:02:46]} 12. Qd1 {[%clk 0:02:35]}  d4 {[%clk 0:02:44]} 13. Ne4 {[%clk 0:02:23]}  O-O {[%clk 0:02:37]} 14. Nxf6+ {[%clk 0:01:52]}  Bxf6 {[%clk 0:02:37]} 15. Bxa8 {[%clk 0:01:52]}  Qxa8 {[%clk 0:02:37]} 16. e3 {[%clk 0:01:50]}  Bh3 {[%clk 0:02:35]} 17. f3 {[%clk 0:01:51]}  Rd8 {[%clk 0:02:22]} 18. e4 {[%clk 0:01:49]}  Bxf1 {[%clk 0:02:17]} 19. Kxf1 {[%clk 0:01:48]}  Qc6 {[%clk 0:02:09]} 20. Qd3 {[%clk 0:01:46]}  Rc8 {[%clk 0:02:05]} 21. Bd2 {[%clk 0:01:41]}  Qe6 {[%clk 0:02:02]} 22. b3 {[%clk 0:01:20]}  h5 {[%clk 0:01:53]} 23. Rc1 {[%clk 0:01:17]}  h4 {[%clk 0:01:44]} 24. Rxc8+ {[%clk 0:01:14]}  Qxc8 {[%clk 0:01:42]} 25. g4 {[%clk 0:01:14]}  g6 {[%clk 0:01:24]} 26. Qc4 {[%clk 0:01:11]}  Qd8 {[%clk 0:01:24]} 27. h3 {[%clk 0:01:04]}  Bg5 {[%clk 0:01:22]} 28. Bc1 {[%clk 0:00:26]}  Qf6 {[%clk 0:01:18]} 29. Ke2 {[%clk 0:00:23]}  Kg7 {[%clk 0:01:16]} 30. Qc2 {[%clk 0:00:19]}  d3+ {[%clk 0:01:12]} 31. Kxd3 {[%clk 0:00:20]}  Qxf3+ {[%clk 0:01:11]} 32. Kc4 {[%clk 0:00:20]}  Qf1+ {[%clk 0:01:05]} 0-1


[Site "https://www.chess.com"]

[Event "Titled Tuesday Blitz June 21 Early 2022"]
[White "Kamsky, Gata"]
[Black "Perera Alfonso, Rene Humberto"]
[WhiteFideId "2000024"]
[BlackFideId "3514722"]
[WhiteElo "2645"]
[BlackElo "2313"]
[Result "1-0"]
[Round "01"]
[TimeControl "180+1"]
[Date "2022.06.21"]
[WhiteClock "0:00:45"]
[BlackClock "0:00:08"]

1. d4 {[%clk 0:02:57]}  d5 {[%clk 0:02:59]} 2. Bf4 {[%clk 0:02:55]}  Nf6 {[%clk 0:02:59]} 3. e3 {[%clk 0:02:54]}  c5 {[%clk 0:02:59]} 4. c3 {[%clk 0:02:51]}  Nc6 {[%clk 0:02:59]} 5. Nd2 {[%clk 0:02:50]}  e6 {[%clk 0:02:58]} 6. Ngf3 {[%clk 0:02:49]}  Bd6 {[%clk 0:02:57]} 7. Bg3 {[%clk 0:02:49]}  Qe7 {[%clk 0:02:57]} 8. Ne5 {[%clk 0:02:46]}  Bxe5 {[%clk 0:02:57]} 9. dxe5 {[%clk 0:02:45]}  Nd7 {[%clk 0:02:58]} 10. f4 {[%clk 0:02:45]}  O-O {[%clk 0:02:57]} 11. Bd3 {[%clk 0:02:43]}  f6 {[%clk 0:02:57]} 12. exf6 {[%clk 0:02:41]}  Nxf6 {[%clk 0:02:58]} 13. Nf3 {[%clk 0:02:39]}  e5 {[%clk 0:02:06]} 14. fxe5 {[%clk 0:02:37]}  Ng4 {[%clk 0:02:05]} 15. Qd2 {[%clk 0:02:31]}  Ngxe5 {[%clk 0:02:01]} 16. Nxe5 {[%clk 0:02:31]}  Nxe5 {[%clk 0:02:02]} 17. Be2 {[%clk 0:02:31]}  Rd8 {[%clk 0:01:22]} 18. O-O {[%clk 0:02:24]}  Ng4 {[%clk 0:01:02]} 19. Rf3 {[%clk 0:02:12]}  Be6 {[%clk 0:00:57]} 20. h3 {[%clk 0:02:07]}  Nh6 {[%clk 0:00:52]} 21. Raf1 {[%clk 0:02:03]}  Rf8 {[%clk 0:00:49]} 22. Bd3 {[%clk 0:01:56]}  Rxf3 {[%clk 0:00:48]} 23. Rxf3 {[%clk 0:01:56]}  Rf8 {[%clk 0:00:48]} 24. Qf2 {[%clk 0:01:52]}  Rxf3 {[%clk 0:00:46]} 25. Qxf3 {[%clk 0:01:52]}  Qf7 {[%clk 0:00:44]} 26. Qxf7+ {[%clk 0:01:44]}  Nxf7 {[%clk 0:00:45]} 27. Bb8 {[%clk 0:01:43]}  a6 {[%clk 0:00:44]} 28. a3 {[%clk 0:01:25]}  Kf8 {[%clk 0:00:39]} 29. b4 {[%clk 0:01:23]}  cxb4 {[%clk 0:00:36]} 30. cxb4 {[%clk 0:01:23]}  Ke7 {[%clk 0:00:37]} 31. Bxh7 {[%clk 0:01:22]}  Ng5 {[%clk 0:00:29]} 32. Bd3 {[%clk 0:01:21]}  Ne4 {[%clk 0:00:30]} 33. Be5 {[%clk 0:01:21]}  g6 {[%clk 0:00:28]} 34. a4 {[%clk 0:01:16]}  Bf7 {[%clk 0:00:28]} 35. h4 {[%clk 0:01:15]}  Ke6 {[%clk 0:00:26]} 36. Bd4 {[%clk 0:01:15]}  Be8 {[%clk 0:00:25]} 37. a5 {[%clk 0:01:11]}  Nd6 {[%clk 0:00:24]} 38. g4 {[%clk 0:01:09]}  Nb5 {[%clk 0:00:23]} 39. Kf2 {[%clk 0:01:04]}  Na3 {[%clk 0:00:19]} 40. Kg3 {[%clk 0:01:00]}  Nc4 {[%clk 0:00:20]} 41. Kf4 {[%clk 0:00:58]}  Nd6 {[%clk 0:00:18]} 42. Kg5 {[%clk 0:00:57]}  Ne4+ {[%clk 0:00:18]} 43. Kh6 {[%clk 0:00:54]}  Bf7 {[%clk 0:00:16]} 44. Kg7 {[%clk 0:00:54]}  Be8 {[%clk 0:00:15]} 45. Be2 {[%clk 0:00:51]}  Bf7 {[%clk 0:00:14]} 46. g5 {[%clk 0:00:49]}  Nf2 {[%clk 0:00:13]} 47. e4 {[%clk 0:00:47]}  Nxe4 {[%clk 0:00:13]} 48. Bg4+ {[%clk 0:00:47]}  Ke7 {[%clk 0:00:14]} 49. Bc8 {[%clk 0:00:46]}  Nd6 {[%clk 0:00:12]} 50. Bc5 {[%clk 0:00:47]}  Be8 {[%clk 0:00:12]} 51. Bxb7 {[%clk 0:00:44]}  Ke6 {[%clk 0:00:12]} 52. Bxd6 {[%clk 0:00:44]}  Kxd6 {[%clk 0:00:13]} 53. Bxa6 {[%clk 0:00:44]}  d4 {[%clk 0:00:11]} 54. Bd3 {[%clk 0:00:44]}  Ke5 {[%clk 0:00:10]} 55. b5 {[%clk 0:00:44]}  Kf4 {[%clk 0:00:09]} 56. a6 {[%clk 0:00:45]}  Ke3 {[%clk 0:00:10]} 57. a7 {[%clk 0:00:45]}  Kxd3 {[%clk 0:00:08]} 58. a8=Q {[%clk 0:00:45]} 1-0


[Site "https://www.chess.com"]